fUSD/lending_fUSD_20250807
["ID","MTS","AMOUNT","RATE_DAILY","PERIOD"]
[377815071,1754565040177,-400.0,0.00019986,2]
[377815073,1754565040186,-2036.67,0.00019986,2]
[377815075,1754565040195,-400.0,0.00019986,2]
[377815077,1754565040204,-400.0,0.00019986,2]
[377815079,1754565040215,-402.56103571,0.00019986,2]
[377815081,1754565040224,-401.2998385,0.00019986,2]
[377815083,1754565040233,-930.63,0.00019986,2]
[377815085,1754565040243,-1754.95,0.00019986,2]
[377815087,1754565040253,-400.0,0.00019986,2]
[377815089,1754565040262,-402.30939339,0.00019986,2]
[377815091,1754565040271,-630.97,0.00019986,2]
[377815093,1754565040281,-400.0,0.00019986,2]
[377815095,1754565040291,-400.0,0.00019986,2]
[377815097,1754565040300,-1019.75,0.00019986,2]
[377815099,1754565040309,-1260.5,0.00019986,2]
[377815101,1754565040319,-777.73,0.00019986,2]
[377815103,1754565040328,-402.26581638,0.00019986,2]
[377815105,1754565040338,-488.81,0.00019986,2]
[377815107,1754565040347,-400.0,0.00019986,2]
[377815109,1754565040357,-325.49312593,0.00019986,2]
[377815111,1754565040366,-400.0,0.00019986,2]
[377815113,1754565040375,-400.0,0.00019986,2]
[377815115,1754565040384,-400.0,0.00019986,2]
[377815117,1754565040394,-1702.31,0.00019986,2]
[377815119,1754565040404,-400.0,0.00019986,2]
[377815121,1754565040414,-599.75,0.00019986,2]
[377815123,1754565040423,-400.0,0.00019986,2]
[377815125,1754565040433,-400.0,0.00019986,2]
[377815127,1754565040442,-612.7,0.00019986,2]
[377815129,1754565040451,-605.88,0.00019986,2]
[377815131,1754565040460,-400.0,0.00019986,2]
[377815133,1754565040470,-1431.11,0.00019986,2]
[377815135,1754565040479,-401.15256462,0.00019986,2]
[377815137,1754565040488,-400.0,0.00019986,2]
[377815139,1754565040499,-400.0,0.00019986,2]
[377815141,1754565040513,-165.35595884,0.00019986,2]
[377815143,1754565040522,-400.0,0.00019986,2]
[377815145,1754565040531,-400.0,0.00019986,2]
[377815147,1754565040541,-400.0,0.00019986,2]
[377815149,1754565040551,-400.0,0.00019986,2]
[377815151,1754565040560,-578.79,0.00019986,2]
[377815153,1754565040569,-483.71,0.00019986,2]
[377815155,1754565040579,-1615.33,0.00019986,2]
[377815157,1754565040589,-400.0,0.00019986,2]
[377815159,1754565040599,-400.0,0.00019986,2]
[377815161,1754565040608,-400.0,0.00019986,2]
[377815162,1754565040617,-400.0,0.00019986,2]
[377815164,1754565040628,-400.0,0.00019986,2]
[377815166,1754565040637,-400.0,0.00019986,2]
[377815168,1754565040647,-597.8,0.00019986,2]
[377815170,1754565040656,-400.0,0.00019986,2]
[377815172,1754565040666,-400.0,0.00019986,2]
[377815174,1754565040676,-405.55521971,0.00019986,2]
[377815176,1754565040685,-400.0,0.00019986,2]
[377815178,1754565040696,-400.0,0.00019986,2]
[377815180,1754565040705,-400.0,0.00019986,2]
[377815182,1754565040715,-680.69,0.00019986,2]
[377815184,1754565040724,-400.0,0.00019986,2]
[377815186,1754565040735,-788.69,0.00019986,2]
[377815189,1754565040746,-400.0,0.00019986,2]
[377815191,1754565040757,-1565.69,0.00019986,2]
[377815193,1754565040766,-538.17829837,0.00019986,2]
[377815195,1754565040776,-400.0,0.00019986,2]
[377815196,1754565040785,-2289.41,0.00019986,2]
[377815198,1754565040796,-1336.13,0.00019986,2]
[377815201,1754565040806,-760.15,0.00019986,2]
[377815203,1754565040817,-343.34384026,0.00019986,2]
[377815205,1754565040828,-400.0,0.00019986,2]
[377815207,1754565040840,-405.81,0.00019986,2]
[377815209,1754565040856,-951.32,0.00019986,2]
[377815211,1754565040879,-400.0,0.00019986,2]
[377815213,1754565040890,-838.19,0.00019986,2]
[377815215,1754565040899,-1545.39,0.00019986,2]
[377815217,1754565040909,-400.0,0.00019986,2]
[377815219,1754565040918,-400.0,0.00019986,2]
[377815221,1754565040929,-400.0,0.00019986,2]
[377815223,1754565040944,-660.13,0.00019986,2]
[377815225,1754565040953,-1347.96,0.00019986,2]
[377815227,1754565040963,-496.47,0.00019986,2]
[377815229,1754565040974,-401.8179266,0.00019986,2]
[377815231,1754565040983,-400.0,0.00019986,2]
[377815233,1754565040993,-400.0,0.00019986,2]
[377815235,1754565041003,-400.0,0.00019986,2]
[377815237,1754565041012,-408.27,0.00019986,2]
[377815239,1754565041021,-400.0,0.00019986,2]
[377815241,1754565041032,-1454.31,0.00019986,2]
[377815243,1754565041041,-1092.2,0.00019986,2]
[377815245,1754565041050,-400.0,0.00019986,2]
[377815247,1754565041059,-400.0,0.00019986,2]
[377815249,1754565041069,-1745.43,0.00019986,2]
[377815251,1754565041078,-1033.11,0.00019986,2]
[377815253,1754565041088,-400.0,0.00019986,2]
[377815255,1754565041097,-400.0,0.00019986,2]
[377815257,1754565041106,-400.0,0.00019986,2]
[377815259,1754565041116,-400.0,0.00019986,2]
[377815261,1754565041126,-1377.68,0.00019986,2]
[377815263,1754565041135,-1811.7,0.00019986,2]
[377815265,1754565041144,-400.0,0.00019986,2]
[377815267,1754565041154,-400.0,0.00019986,2]
[377815269,1754565041163,-402.10884233,0.00019986,2]
[377815271,1754565041173,-714.69,0.00019986,2]
[377815273,1754565041183,-400.0,0.00019986,2]
[377815275,1754565041193,-400.0,0.00019986,2]
[377815277,1754565041202,-400.0,0.00019986,2]
[377815279,1754565041212,-546.46592201,0.00019986,2]
[377815280,1754565041221,-1000.14,0.00019986,2]
[377815282,1754565041230,-400.0,0.00019986,2]
[377815284,1754565041240,-400.0,0.00019986,2]
[377815286,1754565041249,-769.29,0.00019986,2]
[377815288,1754565041258,-400.0,0.00019986,2]
[377815290,1754565041267,-1242.31,0.00019986,2]
[377815292,1754565041277,-400.0,0.00019986,2]
[377815294,1754565041286,-2453.62,0.00019986,2]
[377815297,1754565041297,-400.0,0.00019986,2]
[377815299,1754565041307,-400.0,0.00019986,2]
[377815300,1754565041317,-400.0,0.00019986,2]
[377815302,1754565041327,-1992.32,0.00019986,2]
[377815304,1754565041338,-400.0,0.00019986,2]
[377815306,1754565041348,-400.0,0.00019986,2]
[377815308,1754565041358,-468.52,0.00019986,2]
[377815311,1754565041368,-2026.17,0.00019986,2]
[377815313,1754565041378,-400.0,0.00019986,2]
[377815315,1754565041389,-400.0,0.00019986,2]
[377815316,1754565041398,-2282.32,0.00019986,2]
[377815318,1754565041407,-400.0,0.00019986,2]
[377815320,1754565041417,-1152.14,0.00019986,2]
[377815322,1754565041427,-400.02632565,0.00019986,2]
[377815325,1754565041437,-1240.49,0.00019986,2]
[377815326,1754565041446,-400.0,0.00019986,2]
[377815328,1754565041456,-489.26,0.00019986,2]
[377815329,1754565041466,-1547.73,0.00019986,2]
[377815330,1754565041475,-1546.65,0.00019986,2]
[377815331,1754565041484,-400.0,0.00019986,2]
[377815332,1754565041494,-831.0,0.00019986,2]
[377815333,1754565041507,-1602.09,0.00019986,2]
[377815334,1754565041516,-400.0,0.00019986,2]
[377815335,1754565041525,-400.0,0.00019986,2]
[377815336,1754565041534,-574.44,0.00019986,2]
[377815337,1754565041545,-1851.47,0.00019986,2]
[377815338,1754565041554,-536.34228879,0.00019986,2]
[377815339,1754565041564,-2159.33,0.00019986,2]
[377815340,1754565041573,-433.69,0.00019986,2]
[377815341,1754565041584,-1544.8,0.00019986,2]
[377815342,1754565041595,-841.02,0.00019986,2]
[377815344,1754565041605,-400.0,0.00019986,2]
[377815346,1754565041614,-800.17,0.00019986,2]
[377815348,1754565041625,-935.17,0.00019986,2]
[377815350,1754565041637,-480.85,0.00019986,2]
[377815352,1754565041646,-440.88,0.00019986,2]
[377815354,1754565041656,-1743.9,0.00019986,2]
[377815356,1754565041666,-400.0,0.00019986,2]
[377815358,1754565041675,-400.0,0.00019986,2]
[377815360,1754565041685,-853.34,0.00019986,2]
[377815362,1754565041695,-400.0,0.00019986,2]
[377815364,1754565041705,-400.0,0.00019986,2]
[377815366,1754565041715,-400.0,0.00019986,2]
[377815368,1754565041724,-400.0,0.00019986,2]
[377815370,1754565041733,-525.78,0.00019986,2]
[377815372,1754565041744,-400.0,0.00019986,2]
[377815374,1754565041753,-972.48,0.00019986,2]
[377815376,1754565041763,-423.45,0.00019986,2]
[377815378,1754565041772,-735.65,0.00019986,2]
[377815380,1754565041781,-649.9,0.00019986,2]
[377815382,1754565041791,-400.0,0.00019986,2]
[377815384,1754565041800,-500.0,0.00019986,2]
[377815386,1754565041809,-400.0,0.00019986,2]
[377815388,1754565041819,-1186.55,0.00019986,2]
[377815390,1754565041829,-400.0,0.00019986,2]
[377815392,1754565041839,-400.0,0.00019986,2]
[377815394,1754565041849,-1845.41,0.00019986,2]
[377815396,1754565041858,-400.0,0.00019986,2]
[377815398,1754565041867,-537.29,0.00019986,2]
[377815400,1754565041876,-400.0,0.00019986,2]
[377815402,1754565041885,-791.66,0.00019986,2]
[377815404,1754565041895,-899.83,0.00019986,2]
[377815406,1754565041903,-400.0,0.00019986,2]
[377815408,1754565041913,-401.65,0.00019986,2]
[377815410,1754565041923,-400.0,0.00019986,2]
[377815412,1754565041932,-400.0,0.00019986,2]
[377815414,1754565041941,-1751.37,0.00019986,2]
[377815416,1754565041951,-1420.16,0.00019986,2]
[377815418,1754565041960,-686.95,0.00019986,2]
[377815420,1754565041968,-400.0,0.00019986,2]
[377815422,1754565041978,-400.0,0.00019986,2]
[377815423,1754565041987,-1551.7,0.00019986,2]
[377815425,1754565041997,-457.57,0.00019986,2]
[377815427,1754565042007,-400.0,0.00019986,2]
[377815429,1754565042016,-1306.56,0.00019986,2]
[377815431,1754565042025,-11074.45,0.00019986,2]
[377815433,1754565042035,-716.26,0.00019986,2]
[377815435,1754565042043,-400.0,0.00019986,2]
[377815437,1754565042053,-400.0,0.00019986,2]
[377815439,1754565042062,-500.17767018,0.00019986,2]
[377815441,1754565042071,-451.93,0.00019986,2]
[377815443,1754565042081,-1420.1,0.00019986,2]
[377815445,1754565042090,-400.0,0.00019986,2]
[377815447,1754565042099,-487.7289285,0.00019986,2]
[377815449,1754565042108,-400.0,0.00019986,2]
[377815451,1754565042117,-400.0,0.00019986,2]
[377815453,1754565042129,-400.0,0.00019986,2]
[377815455,1754565042138,-531.68,0.00019986,2]
[377815457,1754565042147,-400.0,0.00019986,2]
[377815459,1754565042156,-811.26,0.00019986,2]
[377815461,1754565042165,-775.13,0.00019986,2]
[377815463,1754565042174,-1055.0,0.00019986,2]
[377815465,1754565042183,-1011.73,0.00019986,2]
[377815467,1754565042192,-400.0,0.00019986,2]
[377815469,1754565042201,-400.0,0.00019986,2]
[377815471,1754565042210,-513.19,0.00019986,2]
[377815473,1754565042220,-400.0,0.00019986,2]
[377815475,1754565042229,-1944.36,0.00019986,2]
[377815477,1754565042239,-400.0,0.00019986,2]
[377815479,1754565042250,-400.0,0.00019986,2]
[377815481,1754565042259,-612.26,0.00019986,2]
[377815483,1754565042269,-400.0,0.00019986,2]
[377815485,1754565042278,-781.85,0.00019986,2]
[377815487,1754565042288,-400.0,0.00019986,2]
[377815489,1754565042297,-400.0,0.00019986,2]
[377815490,1754565042306,-3248.17,0.00019986,2]
[377815492,1754565042316,-733.66,0.00019986,2]
[377815494,1754565042325,-400.0,0.00019986,2]
[377815496,1754565042335,-1326.55,0.00019986,2]
[377815498,1754565042348,-2056.5,0.00019986,2]
[377815500,1754565042357,-400.0,0.00019986,2]
[377815502,1754565042367,-1001.16,0.00019986,2]
[377815504,1754565042376,-400.0,0.00019986,2]
[377815506,1754565042386,-400.0,0.00019986,2]
[377815508,1754565042395,-2899.74,0.00019986,2]
[377815510,1754565042405,-1891.31,0.00019986,2]
[377815512,1754565042414,-400.0,0.00019986,2]
[377815514,1754565042424,-490.34,0.00019986,2]
[377815516,1754565042433,-729.78,0.00019986,2]
[377815518,1754565042442,-570.35,0.00019986,2]
[377815520,1754565042452,-782.49,0.00019986,2]
[377815558,1754565042736,-400.0,0.00019986,2]
[377815560,1754565042748,-967.91,0.00019986,2]
[377815562,1754565042757,-400.0,0.00019986,2]
[377815564,1754565042766,-923.8,0.00019986,2]
[377815566,1754565042776,-1659.12,0.00019986,2]
[377815568,1754565042785,-400.0,0.00019986,2]
[377815570,1754565042795,-1791.89,0.00019986,2]
[377815573,1754565042805,-400.0,0.00019986,2]
[377815575,1754565042814,-496.63,0.00019986,2]
[377815577,1754565042823,-804.66,0.00019986,2]
[377815579,1754565042833,-400.0,0.00019986,2]
[377815581,1754565042843,-1532.74,0.00019986,2]
[377815584,1754565042853,-1560.06,0.00019986,2]
[377815586,1754565042862,-1785.51,0.00019986,2]
[377815588,1754565042871,-400.0,0.00019986,2]
[377815590,1754565042880,-400.0,0.00019986,2]
[377815592,1754565042889,-400.0,0.00019986,2]
[377815594,1754565042899,-2237.53,0.00019986,2]
[377815596,1754565042908,-400.0,0.00019986,2]
[377815598,1754565042917,-757.34,0.00019986,2]
[377815600,1754565042927,-494.67,0.00019986,2]
[377815602,1754565042936,-1244.23,0.00019986,2]
[377815604,1754565042946,-400.0,0.00019986,2]
[377815606,1754565042955,-741.72,0.00019986,2]
[377815608,1754565042965,-1498.16,0.00019986,2]
[377815610,1754565042974,-400.0,0.00019986,2]
[377815612,1754565042983,-2148.07,0.00019986,2]
[377815614,1754565042992,-933.25,0.00019986,2]
[377815616,1754565043001,-1594.23,0.00019986,2]
[377815618,1754565043011,-400.0,0.00019986,2]
[377815620,1754565043020,-515.26,0.00019986,2]
[377815622,1754565043031,-1059.48,0.00019986,2]
[377815624,1754565043041,-778.67,0.00019986,2]
[377815626,1754565043050,-400.0,0.00019986,2]
[377815628,1754565043060,-1459.15,0.00019986,2]
[377815630,1754565043069,-400.0,0.00019986,2]
[377815632,1754565043079,-400.0,0.00019986,2]
[377815634,1754565043088,-400.0,0.00019986,2]
[377815636,1754565043098,-499.57,0.00019986,2]
[377815638,1754565043108,-400.0,0.00019986,2]
[377815640,1754565043118,-1170.45,0.00019986,2]
[377815642,1754565043127,-539.46,0.00019986,2]
[377815644,1754565043136,-486.86,0.00019986,2]
[377815646,1754565043146,-1050.15,0.00019986,2]
[377815648,1754565043155,-1001.04,0.00019986,2]
[377815650,1754565043165,-2144.68,0.00019986,2]
[377815652,1754565043174,-1413.08,0.00019986,2]
[377815654,1754565043184,-1729.94,0.00019986,2]
[377815656,1754565043193,-1145.0,0.00019986,2]
[377815658,1754565043203,-942.5,0.00019986,2]
[377815660,1754565043212,-543.85,0.00019986,2]
[377815662,1754565043222,-500.0,0.00019986,2]
[377815664,1754565043231,-1531.76,0.00019986,2]
[377815666,1754565043241,-1427.63,0.00019986,2]
[377815668,1754565043252,-400.0,0.00019986,2]
[377815670,1754565043262,-527.11,0.00019986,2]
[377815672,1754565043271,-400.0,0.00019986,2]
[377815674,1754565043280,-777.83,0.00019986,2]
[377815676,1754565043290,-1662.87,0.00019986,2]
[377815678,1754565043300,-2140.88,0.00019986,2]
[377815680,1754565043310,-5381.57,0.00019986,2]
[377815682,1754565043319,-400.0,0.00019986,2]
[377815684,1754565043330,-400.0,0.00019986,2]
[377815686,1754565043339,-400.0,0.00019986,2]
[377815688,1754565043349,-400.0,0.00019986,2]
[377815690,1754565043358,-1422.47,0.00019986,2]
[377815692,1754565043368,-400.0,0.00019986,2]
[377815694,1754565043377,-885.36,0.00019986,2]
[377815697,1754565043387,-400.0,0.00019986,2]
[377815700,1754565043396,-3114.09,0.00019986,2]
[377815701,1754565043406,-1108.07,0.00019986,2]
[377815703,1754565043415,-400.0,0.00019986,2]
[377815705,1754565043424,-400.0,0.00019986,2]
[377815707,1754565043434,-442.9,0.00019986,2]
[377815709,1754565043443,-400.0,0.00019986,2]
[377815711,1754565043452,-1371.87,0.00019986,2]
[377815713,1754565043463,-1640.73,0.00019986,2]
[377815715,1754565043473,-729.87,0.00019986,2]
[377815717,1754565043483,-400.0,0.00019986,2]
[377815719,1754565043493,-400.0,0.00019986,2]
[377815721,1754565043507,-2171.73,0.00019986,2]
[377815723,1754565043517,-613.18,0.00019986,2]
[377815725,1754565043527,-1661.37,0.00019986,2]
[377815727,1754565043537,-511.98,0.00019986,2]
[377815729,1754565043547,-1776.03,0.00019986,2]
[377815731,1754565043556,-1403.79,0.00019986,2]
[377815733,1754565043566,-867.77,0.00019986,2]
[377815735,1754565043576,-400.0,0.00019986,2]
[377815737,1754565043588,-400.0,0.00019986,2]
[377815739,1754565043598,-1695.81,0.00019986,2]
[377815741,1754565043607,-1737.11,0.00019986,2]
[377815743,1754565043617,-400.0,0.00019986,2]
[377815745,1754565043627,-203.59160479,0.00019986,2]
[377815747,1754565043636,-1551.94,0.00019986,2]
[377815749,1754565043645,-400.0,0.00019986,2]
[377815751,1754565043656,-2489.49,0.00019986,2]
[377815753,1754565043665,-1927.97,0.00019986,2]
[377815755,1754565043675,-400.0,0.00019986,2]
[377815757,1754565043685,-445.83,0.00019986,2]
[377815759,1754565043695,-2126.68,0.00019986,2]
[377815761,1754565043704,-1149.92,0.00019986,2]
[377815763,1754565043714,-400.0,0.00019986,2]
[377815765,1754565043724,-894.81192279,0.00019986,2]
[377815769,1754565043745,-251.56807721,0.00019986,2]
[377815771,1754565043755,-2185.71,0.00019986,2]
[377815773,1754565043764,-1756.46,0.00019986,2]
[377815774,1754565043774,-400.0,0.00019986,2]
[377815776,1754565043783,-896.24,0.00019986,2]
[377815778,1754565043793,-720.59,0.00019986,2]
[377815780,1754565043802,-400.0,0.00019986,2]
[377815782,1754565043812,-410.21,0.00019986,2]
[377815784,1754565043822,-604.93,0.00019986,2]
[377815786,1754565043832,-1046.13,0.00019986,2]
[377815788,1754565043841,-899.5,0.00019986,2]
[377815790,1754565043851,-734.86,0.00019986,2]
[377815793,1754565043860,-308.70842342,0.00019986,2]
[377815795,1754565043870,-400.0,0.00019986,2]
[377815796,1754565043879,-964.99,0.00019986,2]
[377815798,1754565043889,-700.23,0.00019986,2]
[377815800,1754565043899,-400.0,0.00019986,2]
[377815802,1754565043910,-400.0,0.00019986,2]
[377815805,1754565043919,-1546.71,0.00019986,2]
[377815807,1754565043929,-400.0,0.00019986,2]
[377815808,1754565043938,-1634.0,0.00019986,2]
[377815810,1754565043948,-1275.52,0.00019986,2]
[377815812,1754565043958,-536.88,0.00019986,2]
[377815815,1754565043968,-1676.86,0.00019986,2]
[377815817,1754565043977,-400.0,0.00019986,2]
[377815819,1754565043987,-1956.77,0.00019986,2]
[377815820,1754565043997,-400.0,0.00019986,2]
[377815823,1754565044007,-400.0,0.00019986,2]
[377815825,1754565044016,-400.0,0.00019986,2]
[377815827,1754565044025,-400.0,0.00019986,2]
[377815829,1754565044035,-2475.89,0.00019986,2]
[377815831,1754565044044,-425.7,0.00019986,2]
[377815833,1754565044053,-4300.78,0.00019986,2]
[377815835,1754565044062,-756.09,0.00019986,2]
[377815837,1754565044071,-400.0,0.00019986,2]
[377815839,1754565044081,-1512.5,0.00019986,2]
[377815841,1754565044091,-835.98,0.00019986,2]
[377815843,1754565044100,-400.0,0.00019986,2]
[377815845,1754565044110,-400.0,0.00019986,2]
[377815847,1754565044119,-400.0,0.00019986,2]
[377815848,1754565044128,-491.49790567,0.00019986,2]
[377815850,1754565044137,-400.0,0.00019986,2]
[377815853,1754565044147,-993.16,0.00019986,2]
[377815854,1754565044157,-400.0,0.00019986,2]
[377815856,1754565044167,-400.0,0.00019986,2]
[377815859,1754565044177,-1797.99,0.00019986,2]
[377815861,1754565044187,-2124.21,0.00019986,2]
[377815863,1754565044197,-641.28,0.00019986,2]
[377815865,1754565044207,-400.0,0.00019986,2]
[377815867,1754565044217,-1408.32,0.00019986,2]
[377815868,1754565044226,-400.0,0.00019986,2]
[377815870,1754565044235,-402.22712379,0.00019986,2]
[377815873,1754565044245,-1915.85,0.00019986,2]
[377815875,1754565044255,-1022.77,0.00019986,2]
[377815877,1754565044264,-400.0,0.00019986,2]
[377815879,1754565044273,-997.31,0.00019986,2]
[377815881,1754565044284,-400.0,0.00019986,2]
[377815883,1754565044293,-1205.19,0.00019986,2]
[377815885,1754565044303,-400.0,0.00019986,2]
[377815887,1754565044314,-1120.55,0.00019986,2]
[377815889,1754565044324,-400.0,0.00019986,2]
[377815891,1754565044335,-760.23,0.00019986,2]
[377815893,1754565044345,-1695.15,0.00019986,2]
[377815895,1754565044356,-1876.2,0.00019986,2]
[377815897,1754565044369,-1573.1,0.00019986,2]
[377815899,1754565044379,-963.66,0.00019986,2]
[377815901,1754565044389,-400.0,0.00019986,2]
[377815902,1754565044399,-2456.6,0.00019986,2]
[377815904,1754565044409,-682.92,0.00019986,2]
[377815905,1754565044419,-450.97,0.00019986,2]
[377815906,1754565044429,-400.0,0.00019986,2]
[377815907,1754565044439,-400.0,0.00019986,2]
[377815908,1754565044449,-400.0,0.00019986,2]
[377815909,1754565044459,-457.55740054,0.00019986,2]
[377815910,1754565044469,-160.0,0.00019986,2]
[377815911,1754565044479,-400.0,0.00019987,2]
[377815912,1754565044489,-400.0,0.00019987,2]
[377815913,1754565044499,-400.0,0.00019987,2]
[377815914,1754565044512,-481.02958363,0.00019987,2]
[377815915,1754565044522,-401.07973259,0.00019987,2]
[377815917,1754565044532,-481.97279375,0.00019987,2]
[377815919,1754565044542,-400.0,0.00019987,2]
[377815921,1754565044552,-400.0,0.00019987,2]
[377815923,1754565044562,-400.0,0.00019987,2]
[377815925,1754565044571,-400.0,0.00019987,2]
[377815927,1754565044583,-400.0,0.00019987,2]
[377815929,1754565044593,-400.0,0.00019987,2]
[377815931,1754565044603,-400.0,0.00019987,2]
[377815933,1754565044613,-400.0,0.00019987,2]
[377815935,1754565044626,-400.0,0.00019987,2]
[377815937,1754565044636,-400.0,0.00019987,2]
[377815939,1754565044646,-400.0,0.00019987,2]
[377815941,1754565044656,-400.0,0.00019987,2]
[377815943,1754565044667,-400.0,0.00019987,2]
[377815945,1754565044677,-400.0,0.00019987,2]
[377815947,1754565044687,-400.0,0.00019987,2]
[377815949,1754565044697,-1718.2,0.00019987,2]
[377815951,1754565044707,-1731.86,0.00019987,2]
[377815953,1754565044716,-1932.28,0.00019987,2]
[377815955,1754565044727,-2113.68,0.00019987,2]
[377815957,1754565044737,-400.0,0.00019987,2]
[377815959,1754565044748,-445.01,0.00019987,2]
[377815961,1754565044759,-1302.62,0.00019987,2]
[377815963,1754565044770,-1740.04,0.00019987,2]
[377815965,1754565044781,-1023.04,0.00019987,2]
[377815967,1754565044791,-1698.54,0.00019987,2]
[377815969,1754565044801,-1640.32,0.00019987,2]
[377815971,1754565044811,-551.82,0.00019987,2]
[377815973,1754565044821,-455.81,0.00019987,2]
[377815975,1754565044831,-500.0,0.00019987,2]
[377815977,1754565044841,-500.0,0.00019987,2]
[377815979,1754565044851,-400.0,0.00019987,2]
[377815981,1754565044861,-400.0,0.00019987,2]
[377815983,1754565044871,-1794.02,0.00019987,2]
[377815985,1754565044882,-400.0,0.00019987,2]
[377815987,1754565044892,-1987.43,0.00019987,2]
[377815990,1754565044902,-1659.0,0.00019987,2]
[377815992,1754565044912,-569.8,0.00019987,2]
[377815994,1754565044922,-400.0,0.00019987,2]
[377815996,1754565044932,-1796.73,0.00019987,2]
[377815998,1754565044943,-640.25,0.00019987,2]
[377815999,1754565044953,-400.0,0.00019987,2]
[377816001,1754565044963,-748.87,0.00019987,2]
[377816003,1754565044973,-1108.8,0.00019987,2]
[377816005,1754565044983,-1285.21,0.00019987,2]
[377816007,1754565044992,-2334.54,0.00019987,2]
[377816010,1754565045003,-1833.06,0.00019987,2]
[377816012,1754565045014,-480.53,0.00019987,2]
[377816013,1754565045023,-1913.34,0.00019987,2]
[377816016,1754565045033,-1178.5,0.00019987,2]
[377816018,1754565045043,-2571.86,0.00019987,2]
[377816020,1754565045053,-400.0,0.00019987,2]
[377816022,1754565045063,-2432.72,0.00019987,2]
[377816024,1754565045073,-631.89,0.00019987,2]
[377816026,1754565045083,-1255.56,0.00019987,2]
[377816028,1754565045093,-400.0,0.00019987,2]
[377816030,1754565045103,-627.52,0.00019987,2]
[377816032,1754565045113,-1652.62,0.00019987,2]
[377816034,1754565045123,-400.0,0.00019987,2]
[377816036,1754565045132,-1476.96,0.00019987,2]
[377816048,1754565045253,-1840.96,0.00019987,2]
[377816050,1754565045263,-400.0,0.00019987,2]
[377816052,1754565045273,-1583.73,0.00019987,2]
[377816054,1754565045283,-1598.7,0.00019987,2]
[377816056,1754565045292,-2519.37,0.00019987,2]
[377816058,1754565045302,-500.0,0.00019987,2]
[377816060,1754565045312,-500.0,0.00019987,2]
[377816062,1754565045322,-500.0,0.00019987,2]
[377816064,1754565045332,-400.0,0.00019987,2]
[377816067,1754565045342,-2258.88,0.00019987,2]
[377816069,1754565045352,-1963.22,0.00019987,2]
[377816071,1754565045361,-1642.12,0.00019987,2]
[377816072,1754565045371,-2218.81,0.00019987,2]
[377816075,1754565045381,-1733.64,0.00019987,2]
[377816076,1754565045390,-1590.28,0.00019987,2]
[377816078,1754565045400,-1734.69,0.00019987,2]
[377816080,1754565045409,-941.82,0.00019987,2]
[377816082,1754565045418,-2510.36,0.00019987,2]
[377816084,1754565045427,-1895.61,0.00019987,2]
[377816086,1754565045437,-3461.75,0.00019987,2]
[377816088,1754565045447,-1702.45,0.00019987,2]
[377816090,1754565045457,-1998.0,0.00019987,2]
[377816092,1754565045467,-470.0,0.00019987,2]